bitfinex/quotes_ETHUSD_20251015
["timestamp","ask_amount","ask_price","bid_price","bid_amount"]
[1760548658088,0.4483,3954.6,3953.0,0.28079977]
[1760548658385,2.1763,3954.6,3953.4,2.52945278]
[1760548658685,0.4483,3954.6,3953.7,2.52922236]
[1760548658886,2.1763,3954.6,3953.8,2.52920635]
[1760548659086,2.5290048,3954.2,3953.0,0.25550253]
[1760548659288,3.16242864,3954.4,3951.6,2.5306205]
[1760548659289,0.6336,3954.0,3951.6,2.5306205]
[1760548659452,1.9573,3953.9,3952.9,2.52973238]
[1760548659654,0.2293,3953.8,3952.9,2.52973962]
[1760548659962,1.728,3954.5,3953.5,2.52936373]
[1760548659963,0.6336,3954.5,3953.5,2.52936373]
[1760548660167,0.2293,3954.4,3953.6,2.52927723]
[1760548660352,0.2293,3954.4,3953.8,2.52918796]
[1760548660566,0.2293,3954.4,3952.2,0.437]
[1760548660872,0.2293,3954.4,3952.3,0.49294102]
[1760548660873,0.2293,3954.3,3952.3,0.49294102]
[1760548661089,0.2293,3954.3,3952.2,2.53023632]
[1760548661397,0.1793,3954.3,3952.4,0.02530108]
[1760548661592,0.1793,3954.3,3953.5,2.52935774]
[1760548661915,1.728,3954.4,3953.3,2.5295181]
[1760548662207,0.6336,3954.5,3953.4,2.52942538]
[1760548662380,0.6336,3954.5,3953.7,2.52922887]
[1760548662699,0.219,3954.6,3952.7,0.437]
[1760548662886,0.219,3954.6,3953.1,0.2341]
[1760548663194,0.219,3954.6,3954.2,2.52890028]
[1760548663405,0.3988,3954.6,3953.1,0.2341]
[1760548663584,0.3988,3954.6,3953.0,2.52968281]
[1760548663585,0.3988,3954.6,3953.8,2.5291833]
[1760548663760,0.3988,3954.6,3954.1,2.52900846]
[1760548663965,0.3988,3954.6,3953.3,0.02529532]
[1760548663966,0.1798,3954.5,3953.9,2.52909803]
[1760548664211,0.1798,3954.5,3953.7,2.52921634]
[1760548664386,0.1798,3954.5,3951.4,2.777]
[1760548664387,1.728,3954.3,3951.7,0.437]
[1760548664587,7.162553,3954.0,3951.5,0.2341]
[1760548664786,0.1264,3952.4,3951.8,0.1264]
[1760548665097,0.1264,3952.1,3951.4,0.1264]
[1760548665298,0.1264,3952.1,3950.3,2.7655002]
[1760548665299,0.1264,3952.4,3951.8,0.1264]
[1760548665486,0.1264,3952.8,3952.2,2.53017417]
[1760548665687,0.1264,3952.8,3952.0,0.1264]
[1760548665900,0.1264,3952.3,3951.6,0.1264]
[1760548666102,0.1264,3951.9,3951.5,2.5306743]
[1760548666303,0.1264,3951.9,3951.8,2.53049243]
[1760548666599,0.1792,3952.2,3951.5,0.1264]
[1760548666600,0.1264,3952.1,3951.5,0.1264]
[1760548666802,0.1264,3951.4,3950.8,0.1264]
[1760548667000,0.1264,3951.4,3951.3,2.53081264]
[1760548667201,0.1264,3951.4,3950.8,2.65752687]
[1760548667496,0.1264,3951.4,3950.8,0.1264]
[1760548668063,0.1264,3951.4,3951.3,2.53081264]
[1760548668269,0.1264,3951.7,3951.0,0.1264]
[1760548668464,0.1264,3951.7,3951.6,2.5306205]
[1760548668682,0.6336,3952.1,3951.0,0.02531004]
[1760548668898,0.6336,3952.1,3951.5,2.53063459]
[1760548669099,0.1792,3952.8,3951.6,0.0253062]
[1760548669299,0.1792,3953.4,3952.5,2.5299925]
[1760548669611,0.1792,3952.9,3952.4,2.53010228]
[1760548669792,2.52917013,3953.9,3951.4,2.53074859]
[1760548670102,0.1792,3953.4,3952.5,2.52999371]
[1760548670300,0.1792,3952.9,3951.5,2.53068455]
[1760548670501,0.6336,3953.8,3951.4,0.32019888]
[1760548670502,0.1792,3953.4,3951.4,0.32019888]
[1760548670665,0.6336,3953.8,3952.2,2.53018894]
[1760548670666,0.02502517,3952.8,3952.2,2.53018894]
[1760548670870,0.6336,3952.6,3951.0,0.25563789]
[1760548671175,0.1792,3952.7,3951.1,0.2341]
[1760548671502,0.6336,3952.9,3952.5,2.53003529]
[1760548671800,0.1792,3952.8,3952.3,2.53012593]
[1760548672009,0.1792,3952.8,3951.3,2.53081264]
[1760548672010,0.1792,3952.8,3951.7,2.5557986]
[1760548672178,0.1712,3953.0,3951.7,0.02530556]
[1760548672384,0.1712,3953.0,3951.5,0.437]
[1760548672605,0.1712,3953.0,3952.3,2.53011688]
[1760548672768,0.1712,3953.0,3951.6,2.82740176]
[1760548672769,0.1712,3953.0,3952.5,2.53001794]
[1760548672971,0.1792,3952.9,3952.5,2.53001794]
[1760548673184,0.1792,3952.9,3952.2,2.53018712]
[1760548673384,0.1792,3952.9,3952.3,0.002]
[1760548673583,0.1712,3953.0,3952.6,2.52996016]
[1760548673792,0.1792,3953.4,3952.7,0.02529916]
[1760548674001,0.1284,3954.0,3952.3,0.002]
[1760548674174,0.1791,3953.3,3952.3,0.002]
[1760548674492,0.6336,3953.2,3952.3,0.002]
[1760548675007,0.3487,3953.1,3952.3,2.53212319]
[1760548675183,0.6336,3953.0,3952.3,2.53212319]
[1760548675913,0.3487,3953.7,3952.4,0.02530108]
[1760548676075,0.1317,3954.4,3952.3,0.50824229]
[1760548676271,0.1317,3954.4,3952.4,3.00620936]
[1760548676474,0.1317,3954.4,3953.6,2.52928427]
[1760548676805,0.1317,3954.4,3952.6,2.52998026]
[1760548676806,1.8597,3954.4,3952.6,2.52998026]
[1760548677005,0.1317,3954.4,3953.8,2.5291554]
[1760548677321,0.219,3954.6,3953.1,0.2359]
[1760548677527,0.1284,3953.9,3952.3,0.002]
[1760548677817,0.6336,3953.4,3952.5,2.5300272]
[1760548677978,0.7653,3953.4,3952.3,2.5321128]
[1760548678179,2.3616,3953.2,3952.3,2.53215585]
[1760548678399,2.793215,3953.1,3952.3,2.53215585]
[1760548678604,0.6336,3953.3,3952.3,0.002]
[1760548678777,0.1264,3952.7,3952.3,0.002]
[1760548679111,0.1264,3952.7,3952.4,2.53010828]
[1760548679280,0.1264,3952.7,3952.3,0.002]
[1760548679820,0.1264,3952.5,3952.3,0.002]
[1760548680131,0.1264,3952.5,3952.4,2.53010828]
[1760548680412,0.1334,3954.4,3953.6,2.5292786]
[1760548680578,0.1334,3954.4,3952.4,1.00592428]
[1760548680579,0.1264,3953.7,3952.6,2.52998026]
[1760548680773,0.1264,3953.7,3952.4,1.1070232]
[1760548680774,0.1264,3953.7,3953.6,2.52934034]
[1760548681073,0.099,3953.7,3952.7,2.52986121]
[1760548681272,0.1632,3953.8,3952.3,2.53211459]
[1760548681273,0.6336,3953.4,3952.3,0.002]
[1760548681573,0.02502517,3953.3,3952.3,0.002]
[1760548681771,0.6336,3953.4,3952.3,0.002]
[1760548681970,0.3142,3953.6,3952.3,0.002]
[1760548682174,0.6336,3953.7,3952.3,0.73215043]
[1760548682372,4.47430828,3952.4,3952.3,0.002]
[1760548682596,9.95741737,3952.0,3949.9,0.2359]
[1760548682799,8.86497037,3952.0,3949.9,0.2359]
[1760548683018,8.62060137,3952.0,3949.9,0.2359]
[1760548683215,8.36454037,3952.0,3950.3,0.2359]
[1760548683383,4.99006437,3952.0,3950.3,0.2359]
[1760548683711,4.99006437,3952.0,3950.3,0.6867]
[1760548683712,8.21960437,3952.0,3950.3,0.6867]
[1760548683883,7.48675537,3952.0,3950.6,2.53323643]
[1760548684085,10.76637537,3952.0,3950.8,2.53112014]
[1760548684284,11.63971937,3952.0,3950.6,2.53320851]
[1760548684515,4.99006437,3952.0,3950.7,2.53117416]
[1760548684681,8.41718937,3952.0,3950.6,0.002]
[1760548685531,34.99006437,3952.0,3950.6,0.002]
[1760548686099,34.99006437,3952.0,3951.5,1e-08]
[1760548686100,3.1642205,3951.6,3951.5,1e-08]
[1760548686309,17.5041075,3951.6,3951.5,1e-08]
[1760548686634,8.2295135,3951.6,3951.5,1e-08]
[1760548686931,7.5959135,3951.6,3951.5,1e-08]
[1760548687130,8.2295135,3951.6,3951.5,1e-08]
[1760548688139,34.9903205,3951.6,3951.5,1e-08]
[1760548689001,33.0012585,3951.6,3951.5,1e-08]
[1760548689202,4.9903205,3951.6,3951.5,1e-08]
[1760548689403,34.9903205,3951.6,3951.5,1e-08]
[1760548689700,34.9903205,3951.6,3950.4,0.002]
[1760548689701,2.53132514,3950.5,3950.4,1e-08]
[1760548689906,8.02211814,3950.5,3950.4,1e-08]
[1760548690110,14.65593314,3950.5,3950.4,1e-08]
[1760548690344,8.81410414,3950.5,3950.4,1e-08]
[1760548690838,8.81410414,3950.5,3949.8,0.002]
[1760548690839,8.95507766,3949.9,3949.8,0.002]
[1760548691135,9.37608366,3949.9,3949.8,0.002]
[1760548691339,9.48038366,3949.9,3949.8,0.002]
[1760548691736,34.89343786,3949.7,3949.6,1e-08]
[1760548692102,34.99773786,3949.7,3949.6,1e-08]
[1760548692533,15.20194786,3949.7,3949.6,1e-08]
[1760548692736,14.52668286,3949.7,3949.6,1e-08]
[1760548692938,2.53116403,3950.8,3949.6,1e-08]
[1760548693138,0.1888,3952.0,3949.6,1e-08]
[1760548693139,14.18005186,3949.7,3949.6,1e-08]
[1760548693340,0.106,3951.0,3949.6,1e-08]
[1760548693503,5.811387,3950.5,3949.6,1e-08]
[1760548693836,1.728,3949.8,3949.6,1e-08]
[1760548694037,1.728,3950.3,3949.6,1e-08]
[1760548694201,1.728,3949.7,3949.6,1e-08]
[1760548694402,0.2173,3950.6,3949.6,1e-08]
[1760548694602,0.1264,3949.7,3949.6,0.44280001]
[1760548694832,0.1264,3949.7,3949.6,1e-08]
[1760548695000,0.76,3949.7,3949.6,1e-08]
[1760548695332,0.1264,3949.7,3949.6,1e-08]
[1760548695703,0.1264,3949.7,3949.6,0.44280001]
[1760548695901,0.099,3951.5,3949.6,0.44280001]
[1760548696130,2.53109762,3950.9,3949.7,0.02531837]
[1760548696317,0.1264,3950.3,3949.8,2.97451616]
[1760548696518,0.1264,3950.3,3950.2,0.2261]
[1760548696733,0.1264,3950.7,3950.2,0.2261]
[1760548696900,0.1264,3950.7,3950.3,0.4428]
[1760548697109,0.1264,3950.7,3950.4,0.4428]
[1760548697435,0.02502517,3950.9,3949.8,0.4428]
[1760548697602,0.1264,3950.5,3949.9,0.2261]
[1760548697799,0.1264,3950.5,3950.0,0.4428]
[1760548698047,0.6336,3951.3,3949.9,0.2261]
[1760548698048,2.53073453,3951.5,3950.5,2.53129469]
[1760548698247,0.1264,3950.8,3950.2,2.53151739]
[1760548698448,0.2162,3952.4,3950.6,0.4428]
[1760548698653,0.2168,3953.5,3950.7,2.75726802]
[1760548698826,0.1264,3952.6,3951.0,2.5310048]
[1760548699026,0.1013,3953.5,3951.1,0.96628048]
[1760548699233,0.1264,3952.0,3951.4,0.1264]
[1760548699548,0.6336,3952.4,3951.1,0.2261]
[1760548699724,6.99013825,3952.5,3950.7,0.2261]
[1760548699725,0.6336,3951.4,3950.7,0.2261]
[1760548699924,2.3616,3952.1,3951.3,0.2261]
[1760548700125,1.728,3951.3,3950.8,0.4428]
[1760548700348,1.728,3952.8,3951.2,0.2261]
[1760548700517,2.63177681,3953.3,3951.2,0.2261]
[1760548700518,0.1022,3953.3,3951.2,0.2261]
[1760548700721,2.53026142,3952.2,3951.3,0.4428]
[1760548700948,0.02502517,3952.1,3951.3,0.4428]
[1760548701152,2.53023632,3952.2,3951.2,0.2261]
[1760548701340,3.16435023,3951.4,3950.8,0.4428]
[1760548701521,1.728,3952.0,3950.8,0.4428]
[1760548701718,2.53074859,3951.4,3950.8,0.4428]
[1760548701925,0.6336,3951.8,3950.8,0.4428]
[1760548702153,2.530972,3951.1,3950.7,0.2261]
[1760548702370,1.728,3951.6,3950.8,0.4428]
[1760548702519,0.1871,3955.2,3951.5,0.2261]
[1760548702520,1.728,3951.8,3951.5,0.2261]
[1760548702716,1.728,3951.6,3951.2,0.2261]
[1760548702916,2.53063698,3951.6,3951.2,0.6689]
[1760548703144,2.52986896,3952.8,3951.2,0.6689]
[1760548703145,1.728,3952.3,3951.3,0.4428]
[1760548703350,1.728,3952.1,3951.3,0.4428]
[1760548703517,1.728,3951.9,3951.3,0.4428]
[1760548703718,1.728,3952.1,3951.3,0.4428]
[1760548704040,2.53037263,3952.0,3951.3,0.4428]
[1760548704250,0.6336,3952.3,3951.3,0.4428]
[1760548704548,1.728,3952.2,3951.4,2.53072362]
[1760548704753,4.25824192,3952.2,3951.3,2.97359778]
[1760548704921,4.25841065,3952.0,3951.3,0.4428]
[1760548705323,4.25841065,3952.0,3950.8,2.53108685]
[1760548705324,1.728,3951.3,3950.6,0.4428]
[1760548705639,10.501767,3952.2,3950.5,0.2261]
[1760548705640,0.02502517,3951.2,3950.5,0.2261]
[1760548705841,0.6336,3951.5,3950.5,0.2261]
[1760548706242,0.1895,3952.4,3950.6,0.4428]
[1760548706422,2.53031957,3952.1,3951.4,0.2261]
[1760548706622,2.53037252,3952.0,3951.4,0.2261]
[1760548706852,0.6336,3952.5,3951.4,0.2261]
[1760548707153,1.728,3951.8,3951.4,0.2261]
[1760548707854,0.02502517,3951.7,3950.5,0.2261]
[1760548708156,2.53070305,3951.5,3950.6,2.97401224]
[1760548708353,2.53059426,3951.7,3950.8,2.53111013]
[1760548708530,1.728,3952.0,3950.9,0.4428]
[1760548708730,2.53076251,3951.4,3950.9,0.4428]
[1760548709045,0.6336,3952.2,3951.3,0.2261]
[1760548709270,1.75302517,3952.7,3951.4,0.4428]
[1760548709422,1.728,3952.0,3951.4,0.4428]
[1760548709626,2.53030199,3952.1,3951.4,0.4428]
[1760548709627,0.001,3951.8,3951.4,0.5692]
[1760548709819,0.001,3951.8,3951.4,2.65710177]
[1760548710077,0.001,3951.8,3951.5,2.97347768]
[1760548710276,0.001,3951.8,3951.7,2.53055646]
[1760548710790,0.001,3952.2,3952.1,2.53030034]
[1760548711077,0.226,3954.9,3951.9,0.6336]
[1760548711230,0.226,3954.9,3951.8,0.4428]
[1760548711431,0.226,3954.9,3951.9,0.29733987]
[1760548711432,0.6336,3953.9,3951.9,0.29733987]
[1760548711657,0.6336,3953.2,3951.8,0.4428]
[1760548711866,2.52987525,3952.8,3951.8,2.97324188]
[1760548712165,1.728,3953.0,3947.7,1.37586119]
[1760548712166,1.728,3952.5,3951.2,0.4428]
[1760548712367,0.1854,3952.9,3951.2,0.4428]
[1760548712663,1.728,3952.6,3951.4,0.4428]
[1760548712865,1.728,3952.8,3951.4,0.4428]
[1760548712866,1.728,3952.4,3951.6,2.53058731]
[1760548713069,2.3616,3953.4,3951.4,0.4428]
[1760548713237,2.53034983,3952.1,3951.3,0.2261]
[1760548713431,4.25792764,3952.7,3951.4,2.55603935]
[1760548713632,0.6336,3952.6,3951.4,0.5755869]
[1760548713948,1.728,3952.1,3951.3,3.19969574]
[1760548714469,1.728,3952.3,3951.4,2.53069499]
[1760548714673,1.728,3952.4,3951.3,3.1997028]
[1760548714842,2.52911811,3954.0,3951.3,0.2261]
[1760548715161,2.52933736,3953.7,3952.1,2.53025273]
[1760548715361,4.02261,3953.7,3952.1,2.53025273]
[1760548715563,2.52943895,3953.5,3952.2,2.53023632]
[1760548715754,1.9392,3953.9,3952.3,2.53015221]
[1760548715951,2.52953282,3953.3,3952.4,2.53009387]
[1760548716264,2.52951448,3953.4,3952.2,0.4428]
[1760548716442,1.728,3953.2,3952.2,0.4428]
[1760548716833,1.728,3953.3,3952.2,0.4428]
[1760548717034,2.4628,3953.8,3952.2,0.4428]
[1760548717331,0.6336,3953.8,3952.3,0.02530172]
[1760548717531,2.5291487,3953.9,3952.4,0.4276]
[1760548717746,1.728,3953.6,3952.7,2.52987149]
[1760548717979,2.52933622,3953.7,3952.6,2.52998026]
[1760548717980,2.3616,3953.7,3952.6,2.52998026]
[1760548718276,0.001,3954.9,3953.5,0.2292]
[1760548718636,2.52858481,3954.8,3953.8,2.52915343]
[1760548718968,0.001,3954.9,3953.2,2.52955244]
[1760548718969,0.02602517,3954.7,3953.2,2.52955244]
[1760548719134,0.02502517,3954.6,3953.1,0.2292]
[1760548719331,0.001,3954.7,3953.2,0.4276]
[1760548719557,0.001,3954.7,3953.8,2.52920672]
[1760548719763,0.001,3954.7,3954.2,2.52895655]
[1760548719968,0.001,3954.7,3954.2,0.2278]
[1760548720144,1.729,3954.7,3953.7,0.2278]
[1760548720485,0.001,3954.7,3954.1,2.5289819]
[1760548720633,0.001,3954.7,3954.2,2.52895655]
[1760548720634,0.1274,3954.7,3954.2,2.52895655]
[1760548720834,0.1274,3954.7,3954.1,0.5894]
[1760548721074,0.1274,3954.7,3954.1,0.1264]
[1760548721239,0.1274,3954.7,3954.1,2.6554044]
[1760548721438,0.1274,3954.7,3954.1,0.1264]
[1760548721859,0.1274,3954.7,3954.2,2.52895655]
[1760548722056,0.1274,3954.7,3954.1,0.1264]
[1760548722257,0.1274,3954.7,3954.1,2.65541129]
[1760548722469,0.1274,3954.7,3954.1,0.1264]
[1760548722673,0.1274,3954.7,3954.1,2.65541064]
[1760548723173,0.1274,3954.7,3954.1,0.1264]
[1760548723365,2.52877816,3954.5,3953.6,2.52932216]
[1760548723562,0.1274,3954.3,3953.7,0.1264]
[1760548723867,0.1274,3954.3,3953.1,0.2292]
[1760548723868,0.001,3954.3,3953.1,0.2292]
[1760548724173,2.52919813,3953.9,3953.3,0.1264]
[1760548724341,0.2254,3953.8,3952.5,0.463]
[1760548724671,0.1264,3953.7,3953.3,2.52947973]
[1760548724839,0.001,3954.3,3953.4,0.48829468]
[1760548725042,0.001,3954.3,3954.2,2.52895655]
[1760548725243,0.001,3954.3,3954.2,2.65535655]
[1760548725471,0.001,3954.3,3954.2,3.14364611]
[1760548725640,0.001,3954.3,3954.2,3.11835655]
[1760548725836,0.001,3954.3,3954.2,4.79160686]
[1760548726255,0.001,3954.9,3954.6,2.52870075]
[1760548726541,0.001,3955.4,3955.0,2.528445]
[1760548726741,0.001,3955.4,3955.3,2.52825322]
[1760548727155,0.001,3955.4,3955.3,2.99125322]
[1760548727343,0.001,3955.4,3955.3,6.8053541]
[1760548727543,0.001,3955.4,3955.3,6.78007157]
[1760548727739,0.001,3956.6,3955.6,4.25606148]
[1760548728004,0.001,3956.6,3955.6,4.88966148]
[1760548728143,0.001,3956.6,3955.6,5.35266148]
[1760548728340,0.001,3956.6,3955.6,6.34682434]
[1760548729040,0.001,3956.6,3955.6,5.71322434]
[1760548729249,0.001,3956.6,3955.6,3.98522434]
[1760548729883,2.52842759,3956.6,3955.1,0.2278]
[1760548730087,2.52848263,3956.6,3955.5,2.5280696]
[1760548730289,2.52750856,3956.5,3955.5,2.5280696]
[1760548730471,0.001,3956.6,3955.6,2.52806148]
[1760548730797,0.2345,3956.0,3954.9,2.52848081]
[1760548730989,0.0999,3955.6,3954.5,2.75655799]
[1760548731146,0.0999,3955.6,3954.7,2.52861065]
[1760548731341,0.0999,3955.6,3954.6,0.2756558]
[1760548731581,0.0999,3955.6,3954.1,1.9558]
[1760548731582,0.6336,3955.5,3954.1,0.2278]
[1760548731971,0.001,3955.7,3954.2,0.48828956]
[1760548732289,2.3616,3955.5,3954.2,0.463]
[1760548732469,2.3616,3955.5,3954.7,2.52862554]
[1760548732669,3.1617257,3955.5,3954.6,2.52869213]
[1760548732874,1.728,3955.4,3954.6,2.52869213]
[1760548733398,0.001,3955.7,3954.7,0.02528636]
[1760548733597,0.001,3955.7,3955.5,2.52806393]
[1760548733752,0.001,3955.7,3954.1,0.2278]
[1760548733954,0.001,3955.7,3955.6,2.52806148]
[1760548734155,0.001,3955.7,3955.5,2.52810919]
[1760548734348,0.001,3955.7,3955.6,2.55334209]
[1760548734560,0.001,3955.7,3955.6,2.75586148]
[1760548735160,0.001,3955.7,3955.6,2.52806148]
[1760548735364,0.001,3955.7,3955.6,3.01634209]
[1760548735604,0.001,3955.7,3955.6,3.54551366]
[1760548736100,0.001,3955.7,3955.6,3.57079427]
[1760548736294,0.001,3955.7,3955.6,3.67111366]
[1760548736858,0.001,3955.7,3955.6,3.69639427]
[1760548737211,0.001,3955.7,3955.6,3.20811366]
[1760548737384,0.001,3955.7,3955.6,3.67111366]
[1760548738454,0.001,3955.7,3955.6,3.20811366]
[1760548738668,0.001,3955.7,3955.6,2.52806148]
[1760548739662,0.001,3955.7,3955.6,3.00444209]
[1760548739860,0.001,3955.7,3955.6,2.97916148]
[1760548740303,0.001,3955.7,3955.2,0.2159]
[1760548740622,0.001,3955.7,3954.4,1.728]
[1760548740771,0.001,3955.7,3955.3,0.2159]
[1760548741104,0.001,3955.7,3954.9,2.52848796]
[1760548741403,0.001,3955.7,3954.3,0.4511]
[1760548741768,0.6336,3955.5,3954.1,0.2278]
[1760548741968,0.001,3955.7,3954.5,2.52876469]
[1760548742186,0.001,3955.7,3955.6,2.52806148]
[1760548742612,0.001,3955.7,3955.6,2.55334209]
[1760548742892,0.001,3955.7,3955.6,2.97916148]
[1760548743273,0.001,3955.7,3955.6,3.00444209]
[1760548743482,0.001,3955.7,3955.6,2.97916148]
[1760548743678,0.001,3955.7,3955.6,3.55148196]
[1760548744077,0.001,3955.7,3955.6,5.27948196]
[1760548744289,0.001,3956.2,3956.1,2.52774196]
[1760548744467,0.099,3958.5,3957.8,2.52661678]
[1760548744669,2.949346,3958.3,3955.9,0.02527869]
[1760548744905,0.6336,3957.9,3957.0,2.52714117]
[1760548745098,0.1857,3957.8,3957.1,0.02527103]
[1760548745303,0.2864,3957.8,3956.3,0.02527614]
[1760548745478,2.3616,3957.7,3956.1,2.52774196]
[1760548745802,0.1007,3957.6,3955.6,2.30032048]
[1760548745970,0.1857,3957.8,3957.1,2.52710192]
[1760548746302,0.1848,3957.9,3956.5,0.4732]
[1760548746502,0.1848,3957.9,3957.2,2.52699016]
[1760548746804,0.1848,3957.9,3957.3,2.52697546]
[1760548746974,0.1848,3957.9,3957.2,0.25269902]
[1760548747175,0.1848,3957.9,3957.1,2.52704119]
[1760548747377,0.1848,3957.9,3957.3,2.52695554]
[1760548747797,0.1848,3957.9,3956.1,1.728]
[1760548747798,0.2082,3958.4,3957.4,0.02526911]
[1760548748000,0.2082,3958.4,3957.2,0.2232]
[1760548748001,0.2845,3958.8,3957.2,0.2232]
[1760548748304,1.728,3958.7,3957.6,2.52674104]
[1760548748508,2.52627941,3958.4,3957.6,2.52674104]
[1760548748804,0.1256,3958.4,3957.7,0.1256]
[1760548749104,0.2845,3958.8,3957.9,0.1256]
[1760548749105,0.1256,3958.6,3957.9,0.1256]
[1760548749291,0.4101,3958.8,3958.2,2.65198903]
[1760548749610,0.4101,3958.8,3958.2,0.1256]
[1760548749902,0.1256,3958.8,3958.2,0.1256]
[1760548750615,0.1256,3959.3,3958.6,0.1256]
[1760548750814,0.1181,3959.4,3958.1,0.2232]
[1760548750815,0.1181,3959.4,3959.1,2.52578901]
[1760548751118,0.4746,3960.0,3958.4,0.4732]
[1760548751119,0.1913,3960.0,3958.4,0.4732]
[1760548751411,0.3761,3960.0,3958.5,2.52620942]
[1760548751602,2.52539992,3959.8,3958.6,0.29994094]
[1760548751801,4.25331629,3959.9,3958.7,0.02526081]
[1760548752107,2.52544922,3959.7,3958.7,2.52603386]
[1760548752315,2.90135506,3960.0,3958.3,2.52630637]
[1760548752316,2.52557141,3959.5,3958.3,2.52630637]
[1760548752487,2.52557141,3959.5,3958.1,0.2232]
[1760548752488,1.728,3959.2,3958.1,2.52644686]
[1760548752693,1.728,3959.2,3957.8,0.2232]
[1760548752694,2.52596956,3958.9,3957.8,0.2232]
[1760548752882,0.1188,3958.8,3957.4,0.2232]
[1760548753076,0.6336,3958.6,3957.4,0.2232]
[1760548753275,2.52647397,3958.1,3957.0,2.52716704]
[1760548753478,0.6336,3958.4,3957.1,0.2750367]
[1760548753676,0.65862517,3958.4,3956.4,0.4732]
[1760548753927,0.3029,3958.8,3957.0,0.02527167]
[1760548754224,0.1188,3958.8,3957.0,13.58376325]
[1760548754391,0.1188,3958.8,3957.0,11.05665239]
[1760548754579,0.1188,3958.8,3958.2,2.52639978]
[1760548754779,0.1841,3959.4,3958.3,0.02526337]
[1760548754977,0.1835,3959.9,3958.9,2.52589885]
[1760548755282,0.1835,3959.9,3958.2,0.2232]
[1760548755481,0.1835,3959.9,3958.2,0.6964]
[1760548755690,0.1835,3959.9,3958.8,2.52601782]
[1760548755903,0.1835,3959.9,3958.2,0.6964]
[1760548755904,2.52551867,3959.6,3958.7,2.52607829]
[1760548756088,0.1835,3959.9,3958.2,0.2232]
[1760548756287,0.1835,3959.9,3958.2,0.6964]
[1760548756610,0.65862517,3959.9,3958.2,0.6964]
[1760548756817,0.6336,3959.8,3958.2,0.2232]
[1760548757000,0.8171,3959.9,3958.4,2.5262294]
[1760548757314,1.728,3959.1,3958.2,0.2232]
[1760548757487,2.5256108,3959.5,3958.1,2.52641514]
[1760548757488,1.728,3959.3,3958.1,2.52641514]
[1760548757682,0.6336,3959.1,3958.2,2.52638994]
[1760548757883,2.52596958,3958.9,3957.5,0.2232]
[1760548758078,0.1201,3958.8,3957.5,0.2232]
[1760548758510,1.728,3958.9,3958.2,2.52635529]
[1760548758675,1.728,3958.9,3957.5,0.2232]
[1760548758676,2.52572428,3959.3,3957.8,0.4732]
[1760548758881,0.1828,3959.7,3957.8,0.79550775]
[1760548759190,1.728,3959.5,3957.8,0.79550775]
[1760548759401,2.52612604,3958.7,3957.5,0.2232]
[1760548759601,2.52615183,3958.6,3957.8,2.5266074]
[1760548759780,2.52628271,3958.4,3957.6,2.52677933]
[1760548759981,1.728,3958.7,3957.2,0.4732]
[1760548760194,1.728,3958.7,3958.0,2.52647916]
[1760548760608,3.1596232,3958.8,3957.8,2.52663068]
[1760548760609,2.52619768,3958.6,3957.8,2.52663068]
[1760548760807,0.1256,3958.7,3958.0,0.1256]
[1760548760998,2.52618882,3958.6,3958.0,0.1256]
[1760548761313,2.52634592,3958.3,3956.8,2.52729192]
[1760548761512,0.6336,3958.3,3957.7,0.1256]
[1760548761679,0.6336,3958.3,3957.4,0.1256]
[1760548761680,0.2078,3957.8,3957.4,0.1256]
[1760548761879,0.2078,3957.8,3957.2,0.1256]
[1760548762092,0.1256,3958.1,3957.4,0.1256]
[1760548762511,2.65210964,3958.1,3957.4,0.1256]
[1760548762713,4.25459033,3958.0,3957.4,0.1256]
[1760548763024,0.2057,3957.5,3956.6,2.5274148]
[1760548763316,0.2057,3957.5,3956.7,2.52735865]
[1760548763681,0.6336,3957.4,3956.6,0.002]
[1760548763876,0.7358,3957.4,3956.6,0.002]
[1760548764083,0.2173,3956.7,3956.6,0.002]
[1760548765745,1.728,3957.2,3956.6,0.002]
[1760548766033,0.1033,3956.7,3956.6,0.002]
[1760548766212,4.99225865,3956.7,3956.6,0.002]
[1760548766535,10.57503465,3956.7,3956.6,0.002]
[1760548767329,9.57503465,3956.7,3956.6,0.002]
[1760548767495,11.73861365,3956.7,3956.6,0.002]
[1760548768100,4.88940586,3956.0,3955.9,0.002]
[1760548768320,4.88940586,3956.0,3953.6,0.2232]
[1760548768321,2.52883226,3954.4,3953.6,2.52933437]
[1760548768524,2.52884402,3954.4,3953.3,2.53152937]
[1760548768711,0.2056,3954.5,3953.8,2.52915053]
[1760548768905,0.2056,3954.5,3953.3,0.002]
[1760548768906,0.2056,3954.5,3953.5,2.52938049]
[1760548769125,0.6336,3954.5,3953.8,2.52916145]
[1760548769331,2.52884319,3954.4,3953.6,2.52933574]
[1760548769638,2.52864629,3954.7,3953.3,0.002]
[1760548769639,0.6336,3954.7,3953.3,0.002]
[1760548769806,4.89055655,3954.2,3953.3,0.002]
[1760548770130,8.94031655,3954.2,3953.3,0.002]
[1760548770335,9.64622855,3954.2,3953.3,0.002]
[1760548770626,8.34216855,3954.2,3953.3,0.002]
[1760548771037,11.85511355,3954.2,3953.3,0.002]
[1760548771339,10.89904855,3954.2,3953.3,0.002]
[1760548771543,4.89055655,3954.2,3953.3,0.002]
[1760548771709,7.53792055,3954.2,3953.3,0.002]
[1760548771917,4.99065655,3954.2,3953.3,0.002]
[1760548772321,15.43927155,3954.2,3953.3,0.002]
[1760548772928,15.05995555,3954.2,3953.3,0.002]
[1760548773130,7.82194355,3954.2,3953.3,0.002]
[1760548773531,3.1630683,3953.4,3953.3,1e-08]
[1760548773718,25.44202569,3953.4,3953.3,1e-08]
[1760548773927,24.20452569,3953.4,3953.3,1e-08]
[1760548774238,15.57562069,3953.4,3953.3,1e-08]